fUSD/lending_fUSD_20240812
["ID","MTS","AMOUNT","RATE_DAILY","PERIOD"]
[334696698,1723481636980,139.67184154,0.00010379,2]
[334696702,1723481943692,166.59,8.487e-05,2]
[334696703,1723482000924,1702.96683899,8.487e-05,2]
[334696733,1723482532605,158.26,8.219e-05,2]
[334696845,1723482632377,-250.0,9.963e-05,2]
[334696846,1723482632387,-303.0,0.00010043,2]
[334696847,1723482632437,-287.27,0.00010043,2]
[334696848,1723482632454,-1053.91,0.00010049,2]
[334696849,1723482632465,-1280.51081877,0.00010049,2]
[334696850,1723482632495,-502.66801,0.00010049,2]
[334696851,1723482632506,-1166.83678172,0.00010049,2]
[334696864,1723482638221,-597.0,0.00010049,2]
[334696865,1723482638343,-2118.85438951,0.00010049,2]
[334696866,1723482638353,-157.48,0.0001022,2]
[334696867,1723482638362,-363.26266479,0.00010287,2]
[334696868,1723482638372,-193.35040018,0.00010287,2]
[334696869,1723482638381,-30.83494498,0.00010379,2]
[334696870,1723482638390,-449.58622418,0.00010379,2]
[334696871,1723482638400,-1050.68636838,0.00010379,2]
[334696872,1723482638410,-181.84064908,0.00010379,2]
[334696873,1723482638419,-162.72933545,0.00010379,2]
[334696874,1723482638429,-299.98698689,0.00010379,2]
[334696875,1723482638438,-413.15115888,0.00010379,2]
[334696876,1723482638452,-158.26,0.00010474,2]
[334696877,1723482638462,-205.85071971,0.00010642,2]
[334696878,1723482638471,-1000.0,0.00010665,2]
[334696879,1723482638480,-455.63,0.00010665,2]
[334696880,1723482638489,-1500.0,0.00010695,2]
[334696881,1723482638498,-1201.76,0.00010695,2]
[334696882,1723482638508,-1500.0,0.0001071,2]
[334696883,1723482638517,-932.55425949,0.00010767,2]
[334696884,1723482638526,-150.0,0.00010817,2]
[334696885,1723482638535,-150.0,0.00010817,2]
[334696886,1723482638544,-150.0,0.00010818,2]
[334696887,1723482638553,-150.0,0.00010822,2]
[334696888,1723482638562,-150.0,0.00010827,2]
[334696889,1723482638575,-150.0,0.00010827,2]
[334696890,1723482638585,-150.0,0.00010828,2]
[334696891,1723482638594,-150.0,0.00010836,2]
[334696892,1723482638603,-150.0,0.00010837,2]
[334696893,1723482638612,-1500.0,0.00010852,2]
[334696894,1723482638621,-1500.0,0.00010861,2]
[334696895,1723482638631,-150.0,0.00010861,2]
[334696896,1723482638640,-150.0,0.00010865,2]
[334696897,1723482638649,-150.0,0.00010871,2]
[334696899,1723482638659,-150.0,0.00010874,2]
[334696901,1723482638668,-150.0,0.00010883,2]
[334696903,1723482638677,-150.0,0.00010883,2]
[334696904,1723482638686,-150.0,0.00010883,2]
[334696906,1723482638695,-300.0,0.00010883,2]
[334696908,1723482638705,-150.0,0.00010889,2]
[334696910,1723482638714,-150.0,0.0001089,2]
[334696912,1723482638723,-150.0,0.00010894,2]
[334696914,1723482638733,-150.0,0.00010897,2]
[334696916,1723482638742,-150.0,0.00010899,2]
[334696918,1723482638751,-3014.18189848,0.000109,2]
[334696920,1723482638763,-185.57970152,0.000109,2]
[334696922,1723482638772,-1136.2729,0.000109,2]
[334696924,1723482638781,-5030.8392,0.000109,2]
[334696926,1723482638790,-150.0,0.00010901,2]
[334696928,1723482638799,-150.0,0.00010904,2]
[334696930,1723482638808,-150.0,0.00010904,2]
[334696932,1723482638818,-150.0,0.00010906,2]
[334696934,1723482638830,-150.0,0.00010906,2]
[334696936,1723482638839,-150.0,0.00010908,2]
[334696938,1723482638848,-150.0,0.00010908,2]
[334696940,1723482638857,-150.0,0.00010909,2]
[334696942,1723482638866,-150.0,0.00010909,2]
[334696944,1723482638875,-150.0,0.00010911,2]
[334696946,1723482638884,-150.0,0.00010913,2]
[334696948,1723482638893,-150.0,0.00010914,2]
[334696950,1723482638903,-150.0,0.00010916,2]
[334696952,1723482638912,-150.0,0.00010919,2]
[334696954,1723482638921,-150.0,0.00010925,2]
[334696956,1723482638930,-150.0,0.00010925,2]
[334696957,1723482638939,-150.0,0.00010928,2]
[334696959,1723482638948,-150.0,0.0001093,2]
[334696961,1723482638957,-150.0,0.00010937,2]
[334696963,1723482638966,-150.0,0.00010938,2]
[334696965,1723482638975,-150.0,0.00010943,2]
[334696967,1723482638984,-150.0,0.00010948,2]
[334696969,1723482638993,-150.0,0.00010954,2]
[334696971,1723482639002,-150.0,0.00010954,2]
[334696973,1723482639012,-150.0,0.00010957,2]
[334696975,1723482639021,-150.0,0.00010964,2]
[334696977,1723482639030,-150.0,0.00010968,2]
[334696979,1723482639039,-238.94,0.0001097,2]
[334696981,1723482639048,-150.0,0.00010976,2]
[334696983,1723482639058,-150.0,0.00010977,2]
[334696985,1723482639067,-150.0,0.00010984,2]
[334696987,1723482639077,-10000.0,0.00010986,2]
[334696988,1723482639086,-438.08,0.0001099,2]
[334696990,1723482639095,-3000.0,0.0001099,2]
[334696992,1723482639104,-150.0,0.00010995,2]
[334696994,1723482639114,-250.0,0.00011,2]
[334696996,1723482639123,-216.84396142,0.00011,2]
[334696998,1723482639137,-1799.65603858,0.00011,2]
[334697000,1723482639146,-150.0,0.00011002,2]
[334697002,1723482639155,-2346.32642692,0.00011005,2]
[334697004,1723482639166,-315.87856478,0.00011005,2]
[334697006,1723482639177,-1266.25068988,0.00011005,2]
[334697008,1723482639188,-464.27999997,0.00011005,2]
[334697012,1723482639215,-540.65357155,0.00011005,2]
[334697014,1723482639226,-14962.96234,0.00011005,2]
[334697017,1723482639246,-762.69359376,0.00011005,2]
[334697019,1723482639258,-2939.9999999,0.00011005,2]
[334697021,1723482639269,-5890.58351324,0.00011005,2]
[334697023,1723482639278,-306.4721,0.00011005,2]
[334697025,1723482639288,-1416.6197,0.00011005,2]
[334697027,1723482639297,-2224.2235,0.00011005,2]
[334697029,1723482639306,-8426.01618676,0.00011005,2]
[334697124,1723482640217,-2806.8,0.00010986,2]
[334697131,1723482640282,-1442.45836735,0.00010986,2]
[334697138,1723482640340,-697.9702023,0.00010986,2]
[334697145,1723482640399,-433.52829154,0.00010986,2]
[334697147,1723482640408,-23.89620801,0.00011005,2]
[334697149,1723482640420,-1050.15812539,0.00011005,2]
[334697152,1723482640432,-2330.50029708,0.00011005,2]
[334697155,1723482640461,-378.67011867,0.00011005,2]
[334697157,1723482640471,-150.0,0.00011005,2]
[334697159,1723482640481,-150.0,0.00011008,2]
[334697161,1723482640492,-150.0,0.00011009,2]
[334697163,1723482640502,-150.0,0.0001101,2]
[334697165,1723482640512,-150.0,0.00011012,2]
[334697167,1723482640522,-150.0,0.00011012,2]
[334697169,1723482640532,-150.0,0.00011014,2]
[334697171,1723482640542,-150.0,0.00011014,2]
[334697173,1723482640551,-150.0,0.00011014,2]
[334697175,1723482640560,-150.0,0.00011017,2]
[334697177,1723482640569,-150.0,0.00011018,2]
[334697179,1723482640582,-150.0,0.00011019,2]
[334697181,1723482640592,-150.0,0.00011024,2]
[334697183,1723482640602,-150.0,0.00011025,2]
[334697185,1723482640611,-150.0,0.00011025,2]
[334697187,1723482640620,-150.0,0.00011026,2]
[334697189,1723482640630,-150.0,0.00011032,2]
[334697190,1723482640639,-150.0,0.00011037,2]
[334697192,1723482640648,-150.0,0.00011038,2]
[334697194,1723482640658,-150.0,0.0001104,2]
[334697196,1723482640667,-150.0,0.00011041,2]
[334697198,1723482640677,-150.0,0.00011042,2]
[334697200,1723482640687,-150.0,0.00011047,2]
[334697203,1723482640697,-150.0,0.00011047,2]
[334697204,1723482640706,-150.0,0.00011048,2]
[334697207,1723482640716,-150.0,0.00011048,2]
[334697209,1723482640726,-150.0,0.00011051,2]
[334697210,1723482640735,-150.0,0.00011052,2]
[334697212,1723482640745,-150.0,0.00011062,2]
[334697214,1723482640755,-150.0,0.00011067,2]
[334697216,1723482640764,-150.0,0.0001107,2]
[334697218,1723482640774,-150.0,0.00011071,2]
[334697220,1723482640783,-713.01,0.00011078,2]
[334697222,1723482640793,-150.0,0.00011081,2]
[334697224,1723482640801,-260.29868133,0.00011086,2]
[334697227,1723482640813,-643.23488832,0.00011086,2]
[334697229,1723482640826,-3031.43850912,0.00011086,2]
[334697231,1723482640838,-1026.408712,0.00011086,2]
[334697233,1723482640850,-1845.50230923,0.00011086,2]
[334697235,1723482640860,-259.79108391,0.00011086,2]
[334697237,1723482640870,-150.0,0.00011092,2]
[334697239,1723482640881,-150.01,0.00011104,2]
[334697241,1723482640891,-159.0116391,0.00011104,2]
[334697243,1723482640900,-9.64182895,0.00011104,2]
[334697245,1723482640912,-678.16972387,0.00011104,2]
[334697247,1723482640922,-667.5326477,0.00011104,2]
[334697249,1723482640931,-2705.9291808,0.00011104,2]
[334697251,1723482640941,-1058.6288876,0.00011104,2]
[334697253,1723482640950,-749.4094394,0.00011104,2]
[334697255,1723482640960,-1414.4015716,0.00011104,2]
[334697257,1723482640970,-2792.10298363,0.00011105,2]
[334697259,1723482640982,-1118.39017192,0.00011105,2]
[334697261,1723482640991,-546.75413564,0.00011105,2]
[334697263,1723482641002,-4140.27821322,0.00011105,2]
[334697266,1723482641014,-5216.67018758,0.00011105,2]
[334697267,1723482641023,-2201.90660748,0.00011105,2]
[334697494,1723482643302,-370.19267968,0.00011105,2]
[334697497,1723482643315,-7962.05378839,0.00011105,2]
[334697499,1723482643327,-1055.27263497,0.00011105,2]
[334697501,1723482643336,-155.0,0.00011105,2]
[334697503,1723482643345,-9069.01403211,0.00011105,2]
[334697505,1723482643355,-4178.748918,0.00011105,2]
[334697539,1723482643684,-2821.251082,0.00011105,2]
[334697541,1723482643694,-4034.64959027,0.00011105,2]
[334697647,1723482644726,-1819.2508218,0.00011105,2]
[334697649,1723482644736,-5403.79429818,0.00011105,2]
[334697651,1723482644746,-155.0,0.00011105,2]
[334697653,1723482644756,-3875.44196721,0.00011105,2]
[334697654,1723482644765,-2841.12816254,0.00011105,2]
[334697656,1723482644775,-3404.38999599,0.00011105,2]
[334697658,1723482644784,-4487.2694592,0.00011105,2]
[334697661,1723482644796,-4783.90398255,0.00011105,2]
[334697663,1723482644806,-3082.18064459,0.00011105,2]
[334697665,1723482644815,-2502.58566001,0.00011105,2]
[334697667,1723482644826,-508.64939399,0.00011105,2]
[334697671,1723482644866,-699.119381,0.00011105,2]
[334697673,1723482644878,-938.17380934,0.00011105,2]
[334697675,1723482644888,-348.48128986,0.00011105,2]
[334697678,1723482644900,-2487.5817405,0.00011105,2]
[334697680,1723482644909,-140.17848083,0.00011105,2]
[334697682,1723482644921,-1500.0,0.00011105,2]
[334697684,1723482644933,-701.66015167,0.00011105,2]
[334697686,1723482644943,-684.24241033,0.00011105,2]
[334697688,1723482644955,-651.33802245,0.00011105,2]
[334697690,1723482644967,-597.87924,0.00011105,2]
[334697693,1723482644986,-178.3775038,0.00011105,2]
[334697695,1723482644996,-123.7428971,0.00011105,2]
[334697697,1723482645008,-704.09202264,0.00011105,2]
[334697699,1723482645020,-682.39886699,0.00011105,2]
[334697702,1723482645032,-124.16907241,0.00011105,2]
[334697704,1723482645042,-1739.57017204,0.00011105,2]
[334697706,1723482645051,-155.0,0.00011105,2]
[334697708,1723482645061,-1298.23330788,0.00011105,2]
[334697710,1723482645071,-1275.64502519,0.00011105,2]
[334697711,1723482645080,-207.69833633,0.00011105,2]
[334697713,1723482645090,-1139.1217656,0.00011105,2]
[334697715,1723482645100,-155.11040532,0.00011105,2]
[334697717,1723482645109,-559.60901723,0.00011105,2]
[334697719,1723482645121,-361.95437182,0.00011105,2]
[334697721,1723482645130,-862.58432818,0.00011105,2]
[334697724,1723482645141,-212.09490705,0.00011105,2]
[334697726,1723482645150,-892.72350459,0.00011105,2]
[334697728,1723482645160,-633.20271836,0.00011105,2]
[334697730,1723482645172,-20.44217979,0.00011105,2]
[334697732,1723482645181,-687.02501385,0.00011105,2]
[334697734,1723482645190,-3032.35761195,0.00011105,2]
[334697736,1723482645202,-723.413963,0.00011105,2]
[334697738,1723482645211,-298.64662098,0.00011105,2]
[334697740,1723482645221,-719.99287251,0.00011105,2]
[334697742,1723482645231,-962.44601255,0.00011105,2]
[334697744,1723482645241,-649.86351287,0.00011105,2]
[334697746,1723482645253,-522.26105292,0.00011105,2]
[334697748,1723482645262,-520.13340827,0.00011105,2]
[334697750,1723482645272,-628.64037232,0.00011105,2]
[334697751,1723482645282,-3121.02924387,0.00011105,2]
[334697754,1723482645292,-600.74422133,0.00011105,2]
[334697756,1723482645302,-155.10923112,0.00011105,2]
[334697758,1723482645312,-156.76856296,0.00011105,2]
[334697760,1723482645323,-203.87566736,0.00011105,2]
[334697762,1723482645333,-485.18668102,0.00011105,2]
[334697763,1723482645342,-155.0,0.00011105,2]
[334697766,1723482645352,-159.83561977,0.00011105,2]
[334697768,1723482645362,-155.0,0.00011105,2]
[334697770,1723482645372,-155.94281336,0.00011105,2]
[334697771,1723482645382,-528.91996067,0.00011105,2]
[334697773,1723482645391,-155.10298167,0.00011105,2]
[334697775,1723482645401,-253.79099211,0.00011105,2]
[334697777,1723482645410,-155.0,0.00011105,2]
[334697779,1723482645420,-219.8148101,0.00011105,2]
[334697781,1723482645431,-165.50846167,0.00011105,2]
[334697783,1723482645440,-400.0,0.00011105,2]
[334697785,1723482645452,-155.0,0.00011105,2]
[334697787,1723482645461,-595.07789582,0.00011105,2]
[334697789,1723482645470,-270.58164358,0.00011105,2]
[334697791,1723482645479,-440.08291615,0.00011105,2]
[334697792,1723482645490,-167.55459275,0.00011105,2]
[334697794,1723482645500,-155.0,0.00011105,2]
[334697796,1723482645509,-289.57921824,0.00011105,2]
[334697798,1723482645518,-310.0,0.00011105,2]
[334697800,1723482645529,-155.0,0.00011105,2]
[334697802,1723482645540,-155.0,0.00011105,2]
[334697804,1723482645549,-155.0,0.00011105,2]
[334697806,1723482645559,-155.0,0.00011105,2]
[334697808,1723482645568,-202.906155,0.00011105,2]
[334697810,1723482645579,-236.34424982,0.00011105,2]
[334697812,1723482645588,-155.0,0.00011105,2]
[334697814,1723482645598,-365.80180037,0.00011105,2]
[334697816,1723482645608,-155.0,0.00011105,2]
[334697818,1723482645618,-155.0,0.00011105,2]
[334697820,1723482645627,-155.0,0.00011105,2]
[334697822,1723482645636,-155.0,0.00011105,2]
[334697824,1723482645647,-155.0,0.00011105,2]
[334697825,1723482645656,-155.0,0.00011105,2]
[334697826,1723482645666,-218.91005949,0.00011105,2]
[334697827,1723482645675,-155.0,0.00011105,2]
[334697828,1723482645684,-155.0,0.00011105,2]
[334697829,1723482645694,-155.0,0.00011105,2]
[334697830,1723482645703,-419.10841212,0.00011105,2]
[334697831,1723482645713,-164.40260801,0.00011105,2]
[334697832,1723482645722,-155.0,0.00011105,2]
[334697833,1723482645731,-493.59808335,0.00011105,2]
[334697834,1723482645741,-476.94280787,0.00011105,2]
[334697835,1723482645751,-155.0,0.00011105,2]
[334697836,1723482645761,-155.0,0.00011105,2]
[334697837,1723482645771,-367.87511774,0.00011105,2]
[334697838,1723482645780,-155.0,0.00011105,2]
[334697839,1723482645790,-155.0,0.00011105,2]
[334697840,1723482645800,-155.0,0.00011105,2]
[334697841,1723482645809,-155.0,0.00011105,2]
[334697842,1723482645819,-155.0,0.00011105,2]
[334697843,1723482645830,-357.45302385,0.00011105,2]
[334697845,1723482645839,-164.37927092,0.00011105,2]
[334697846,1723482645848,-432.47832469,0.00011105,2]
[334697848,1723482645858,-155.0,0.00011105,2]
[334697850,1723482645867,-155.0,0.00011105,2]
[334697852,1723482645877,-380.32741541,0.00011105,2]
[334697854,1723482645886,-214.26825284,0.00011105,2]
[334697856,1723482645896,-401.38425567,0.00011105,2]
[334697859,1723482645906,-155.0,0.00011105,2]
[334697861,1723482645916,-309.29668231,0.00011105,2]
[334697862,1723482645926,-359.41537774,0.00011105,2]
[334697864,1723482645935,-155.0,0.00011105,2]
[334697866,1723482645945,-265.43626793,0.00011105,2]
[334697868,1723482645954,-347.69615481,0.00011105,2]
[334697870,1723482645963,-36.89850372,0.00011105,2]
[334697874,1723482645980,-218.29758811,0.00011105,2]
[334697876,1723482645989,-155.0,0.00011105,2]
[334697878,1723482645999,-159.60847032,0.00011105,2]
[334697880,1723482646009,-454.57521967,0.00011105,2]
[334697882,1723482646019,-155.0,0.00011105,2]
[334697884,1723482646028,-59.39225856,0.00011105,2]
[334697887,1723482646048,-95.60774144,0.00011105,2]
[334697889,1723482646058,-155.44272361,0.00011105,2]
[334697891,1723482646068,-155.0,0.00011105,2]
[334697893,1723482646079,-155.0,0.00011105,2]
[334697895,1723482646088,-155.0,0.00011105,2]
[334697897,1723482646098,-243.25458866,0.00011105,2]
[334697899,1723482646108,-215.2327978,0.00011105,2]
[334697901,1723482646117,-21.50903071,0.00011105,2]
[334697903,1723482646129,-292.21601218,0.00011105,2]
[334697906,1723482646138,-155.0,0.00011105,2]
[334697909,1723482646147,-330.1975188,0.00011105,2]
[334697912,1723482646157,-155.0,0.00011105,2]
[334697915,1723482646168,-155.0,0.00011105,2]
[334697918,1723482646177,-155.0,0.00011105,2]
[334697921,1723482646187,-155.0,0.00011105,2]
[334697925,1723482646196,-155.0,0.00011105,2]
[334697928,1723482646206,-297.48958849,0.00011105,2]
[334697932,1723482646216,-155.0,0.00011105,2]
[334697937,1723482646225,-155.0,0.00011105,2]
[334697941,1723482646234,-197.1386879,0.00011105,2]
[334697945,1723482646243,-211.73961936,0.00011105,2]
[334697948,1723482646253,-205.93925426,0.00011105,2]
[334697952,1723482646262,-155.0,0.00011105,2]
[334697956,1723482646272,-155.0,0.00011105,2]
[334697960,1723482646282,-328.2488375,0.00011105,2]
[334697963,1723482646292,-1829.77989072,0.00011105,2]
[334697967,1723482646308,-381.40853544,0.00011105,2]
[334697970,1723482646317,-155.0,0.00011105,2]
[334697973,1723482646329,-26.00773324,0.00011105,2]
[334697978,1723482646344,-177.40622281,0.00011105,2]
[334697981,1723482646354,-364.18791554,0.00011105,2]
[334697984,1723482646364,-155.0,0.00011105,2]
[334697987,1723482646373,-206.76991049,0.00011105,2]
[334697990,1723482646383,-155.0,0.00011105,2]
[334697993,1723482646393,-155.0,0.00011105,2]
[334697996,1723482646402,-155.0,0.00011105,2]
[334697999,1723482646412,-155.27890173,0.00011105,2]
[334698002,1723482646421,-155.0,0.00011105,2]
[334698005,1723482646431,-155.0,0.00011105,2]
[334698008,1723482646441,-155.0,0.00011105,2]
[334698011,1723482646454,-155.0,0.00011105,2]
[334698014,1723482646463,-155.0,0.00011105,2]
[334698017,1723482646473,-155.0,0.00011105,2]
[334698020,1723482646483,-200.0,0.00011105,2]
[334698024,1723482646493,-155.0,0.00011105,2]
[334698026,1723482646502,-155.0,0.00011105,2]
[334698029,1723482646512,-493.19904541,0.00011105,2]
[334698032,1723482646523,-211.06190242,0.00011105,2]
[334698034,1723482646533,-155.0,0.00011105,2]
[334698037,1723482646542,-209.45746072,0.00011105,2]
[334698040,1723482646551,-264.49036255,0.00011105,2]
[334698043,1723482646560,-200.0,0.00011105,2]
[334698045,1723482646570,-1237.6773211,0.00011112,2]
[334698047,1723482646579,-160.30127123,0.00011161,2]
[334698050,1723482646590,-25322.221128,0.00011186,2]
[334698052,1723482646600,-1798.36715967,0.00011186,2]
[334698055,1723482646611,-5983.9,0.00011186,2]
[334698058,1723482646623,-5971.9,0.00011186,2]
[334698114,1723482647093,-3987.91705982,0.00011186,2]
[334698116,1723482647105,-17985.64357515,0.00011186,2]
[334698118,1723482647114,-200.0,0.00011216,2]
[334698120,1723482647124,-561.38405632,0.00011256,2]
[334698122,1723482647135,-280.63594368,0.00011256,2]
[334698124,1723482647145,-358.0,0.000113,2]
[334698126,1723482647155,-1041.95657501,0.00011322,2]
[334698128,1723482647165,-155.0,0.00011322,2]
[334698130,1723482647174,-155.0,0.00011324,2]
[334698132,1723482647184,-200.0,0.00011328,2]
[334698134,1723482647193,-380.16338852,0.00011361,2]
[334698136,1723482647203,-406.981741,0.00011451,2]
[334698138,1723482647212,-1257.0,0.00011493,2]
[334698140,1723482647221,-622.0,0.00011493,2]
[334698142,1723482647230,-1542.0,0.00011493,2]
[334698144,1723482647239,-1924.0,0.00011493,2]
[334698146,1723482647248,-1137.0,0.00011493,2]
[334698148,1723482647257,-810.0,0.00011493,2]
[334698150,1723482647267,-446.0,0.00011493,2]
[334698152,1723482647276,-610.158,0.00011493,2]
[334698154,1723482647285,-551.0,0.00011493,2]
[334698156,1723482647294,-1895.0,0.00011493,2]
[334698158,1723482647302,-150.0,0.00011493,2]
[334698160,1723482647311,-3291.0,0.00011493,2]
[334698162,1723482647321,-1186.0,0.00011493,2]
[334698164,1723482647332,-21756.0,0.00011493,2]
[334698166,1723482647341,-5841.0,0.00011493,2]
[334698168,1723482647350,-289.0,0.00011493,2]
[334698170,1723482647359,-2467.07117575,0.00011493,2]
[334698172,1723482647370,-2665.92882425,0.00011493,2]
[334698174,1723482647380,-920.731,0.00011493,2]
[334698176,1723482647390,-218.598,0.00011493,2]
[334698178,1723482647399,-1076.0,0.00011493,2]
[334698180,1723482647409,-497.75362946,0.00011499,2]
[334698182,1723482647419,-156.63362031,0.00011633,2]
[334698184,1723482647428,-150.0,0.00011676,2]
[334698186,1723482647437,-2000.0,0.000117,2]
[334698188,1723482647450,-150.0,0.00011734,2]
[334698190,1723482647459,-150.0,0.00011734,2]
[334698192,1723482647468,-150.0,0.00011734,2]
[334698193,1723482647477,-150.0,0.00011744,2]
[334698196,1723482647486,-200.0,0.0001189,2]
[334698197,1723482647495,-200.0,0.0001189,2]
[334698199,1723482647505,-157.48,0.00011924,2]
[334698201,1723482647514,-2266.45840293,0.00011959,2]
[334698203,1723482647526,-1000.0,0.00011998,2]
[334698205,1723482647536,-2000.0,0.00012,2]
[334698207,1723482647545,-600.0,0.00012,2]
[334698209,1723482647555,-500.0,0.00012,2]
[334698211,1723482647565,-151.0,0.00012,2]
[334698213,1723482647576,-151.401218,0.00012,2]
[334698215,1723482647585,-288.755433,0.00012,2]
[334698217,1723482647593,-288.755433,0.00012,2]
[334698219,1723482647603,-226.82057,0.00012,2]
[334698220,1723482647612,-226.82057,0.00012,2]
[334698222,1723482647621,-224.621568,0.00012,2]
[334698224,1723482647631,-224.621568,0.00012,2]
[334698226,1723482647640,-151.0,0.00012,2]
[334698228,1723482647649,-151.0,0.00012,2]
[334698230,1723482647658,-151.0,0.00012,2]
[334698232,1723482647668,-151.0,0.00012,2]
[334698234,1723482647677,-151.0,0.00012,2]
[334698236,1723482647686,-151.0,0.00012,2]
[334698238,1723482647695,-151.0,0.00012,2]
[334698240,1723482647704,-151.0,0.00012,2]
[334698242,1723482647713,-1597.568017,0.00012,2]
[334698243,1723482647723,-151.0,0.00012,2]
[334698245,1723482647732,-151.0,0.00012,2]
[334698247,1723482647742,-151.0,0.00012,2]
[334698249,1723482647752,-176.780241,0.00012,2]
[334698251,1723482647762,-110.01664376,0.00012,2]
[334698253,1723482647773,-131.64629424,0.00012,2]
[334698255,1723482647782,-176.780241,0.00012,2]
[334698257,1723482647791,-241.662938,0.00012,2]
[334698259,1723482647800,-565.448949,0.00012,2]
[334698261,1723482647810,-523.29423276,0.00012,2]
[334698263,1723482647822,-42.15471624,0.00012,2]
[334698265,1723482647833,-163.760731,0.00012,2]
[334698267,1723482647843,-163.760731,0.00012,2]
[334698269,1723482647852,-151.0,0.00012,2]
[334698271,1723482647863,-151.0,0.00012,2]
[334698273,1723482647873,-151.0,0.00012,2]
[334698276,1723482647882,-269.904098,0.00012,2]
[334698277,1723482647892,-151.0,0.00012,2]
[334698279,1723482647901,-37.53093376,0.00012,2]
[334698281,1723482647912,-117.05462324,0.00012,2]
[334698283,1723482647922,-597.41,0.00012,2]
[334698285,1723482647932,-236.34980767,0.00012,2]
[334698288,1723482647944,-361.06019233,0.00012,2]
[334698290,1723482647953,-597.41,0.00012,2]
[334698292,1723482647963,-597.41,0.00012,2]
[334698294,1723482647973,-597.41,0.00012,2]
[334698296,1723482647984,-597.41,0.00012,2]
[334698298,1723482647993,-436.49029398,0.00012,2]
[334698300,1723482648005,-160.91970602,0.00012,2]
[334698302,1723482648014,-597.41,0.00012,2]
[334698304,1723482648026,-597.41,0.00012,2]
[334698306,1723482648036,-144.16037398,0.00012,2]
[334698308,1723482648048,-453.24962602,0.00012,2]
[334698310,1723482648058,-39.84049242,0.00012,2]
[334698312,1723482648069,-557.56950758,0.00012,2]
[334698314,1723482648080,-87.79761266,0.00012,2]
[334698317,1723482648091,-453.08776319,0.00012,2]
[334698319,1723482648102,-56.52462415,0.00012,2]
[334698321,1723482648112,-314.55546953,0.00012,2]
[334698323,1723482648123,-282.85453047,0.00012,2]
[334698325,1723482648132,-165.14,0.00012033,2]
[334698327,1723482648141,-151.0,0.000121,2]
[334698329,1723482648151,-152.286946,0.000121,2]
[334698331,1723482648161,-225.423213,0.000121,2]
[334698333,1723482648170,-152.286946,0.000121,2]
[334698335,1723482648179,-225.423213,0.000121,2]
[334698356,1723482648374,-138.28254906,0.000121,2]
[334698359,1723482648386,-266.60827794,0.000121,2]
[334698361,1723482648396,-151.0,0.000121,2]
[334698363,1723482648406,-404.890827,0.000121,2]
[334698365,1723482648416,-162.115276,0.000121,2]
[334698367,1723482648425,-151.0,0.000121,2]
[334698369,1723482648436,-162.115276,0.000121,2]
[334698371,1723482648449,-151.0,0.000121,2]
[334698373,1723482648458,-151.0,0.000121,2]
[334698375,1723482648467,-151.0,0.000121,2]
[334698377,1723482648477,-151.0,0.000121,2]
[334698379,1723482648487,-151.0,0.000121,2]
[334698381,1723482648496,-151.0,0.000121,2]
[334698382,1723482648505,-151.0,0.000121,2]
[334698384,1723482648514,-151.0,0.000121,2]
[334698386,1723482648525,-150.0,0.000121,2]
[334698388,1723482648534,-864.131611,0.000121,2]
[334698390,1723482648543,-284.273563,0.000121,2]
[334698392,1723482648553,-187.116892,0.000121,2]
[334698394,1723482648562,-187.116892,0.000121,2]